bitfinex-derivatives/quotes_BTCF0:USTF0_20210706
["timestamp","ask_amount","ask_price","bid_price","bid_amount"]
[1625597862664,0.3236835,33787.0,33786.0,0.00417151]
[1625597862904,0.24057544,33787.0,33786.0,0.00417151]
[1625597863504,0.32368194,33787.0,33786.0,0.00417151]
[1625597863806,0.24057544,33787.0,33786.0,0.00417151]
[1625597864227,0.32365613,33787.0,33786.0,0.00417151]
[1625597864472,0.48962232,33787.0,33786.0,0.00417151]
[1625597864707,0.32365613,33787.0,33786.0,0.00417151]
[1625597865371,0.48973074,33787.0,33786.0,0.00417151]
[1625597866091,0.32365613,33787.0,33785.0,0.24057544]
[1625597866573,0.87861153,33786.0,33785.0,0.24057544]
[1625597866875,3.04137309,33786.0,33785.0,0.24057544]
[1625597867112,3.28194853,33786.0,33785.0,0.24057544]
[1625597867233,4.61281446,33786.0,33784.0,0.08]
[1625597867476,2.82817138,33785.0,33784.0,0.08]
[1625597868012,4.15818941,33785.0,33784.0,0.08]
[1625597868433,4.24668941,33785.0,33784.0,0.08]
[1625597868616,3.5811884,33785.0,33784.0,0.08]
[1625597868737,3.4926884,33785.0,33784.0,0.08]
[1625597869098,3.73326384,33785.0,33784.0,0.08]
[1625597869702,2.40324581,33785.0,33784.0,0.08]
[1625597869881,1.23874379,33785.0,33784.0,0.08]
[1625597870962,0.24057544,33785.0,33784.0,0.08]
[1625597871203,0.24057544,33785.0,33784.0,0.56115088]
[1625597871805,0.73975182,33785.0,33784.0,0.56115088]
[1625597872408,0.73975182,33785.0,33784.0,0.32057544]
[1625597872647,1.73765742,33785.0,33784.0,0.32057544]
[1625597873610,2.90144185,33785.0,33784.0,0.32057544]
[1625597873850,1.73765742,33785.0,33784.0,0.32057544]
[1625597875236,1.73765742,33785.0,33784.0,0.56115088]
[1625597875474,0.73975182,33785.0,33784.0,0.56115088]
[1625597876074,0.73975182,33785.0,33784.0,0.32057544]
[1625597877156,0.73975182,33785.0,33784.0,0.56115088]
[1625597877938,0.73975182,33785.0,33784.0,0.5653243]
[1625597878178,0.83159535,33785.0,33784.0,0.5653243]
[1625597878420,0.49917638,33785.0,33784.0,0.5653243]
[1625597878841,1.16390667,33785.0,33784.0,0.5653243]
[1625597880285,2.16111776,33785.0,33784.0,0.5653243]
[1625597886832,2.16111776,33785.0,33784.0,0.4853243]
[1625597887616,1.16390667,33785.0,33784.0,0.4853243]
[1625597887795,2.16191793,33785.0,33784.0,0.4853243]
[1625597888094,1.16390667,33785.0,33784.0,0.4853243]
[1625597889537,0.49917638,33785.0,33784.0,0.4853243]
[1625597890798,0.99850083,33787.0,33784.0,0.4853243]
[1625597890920,0.58236338,33785.0,33784.0,0.4853243]
[1625597891101,0.6651544,33787.0,33784.0,1.00640478]
[1625597891102,0.24983743,33787.0,33784.0,1.00640478]
[1625597891281,0.24983743,33787.0,33786.0,0.24057544]
[1625597891399,0.08333459,33787.0,33786.0,0.58089544]
[1625597891520,0.08333459,33787.0,33786.0,0.58507184]
[1625597891640,0.24980656,33787.0,33786.0,0.58507184]
[1625597891884,0.99736916,33787.0,33786.0,0.24475184]
[1625597892126,3.4879409,33787.0,33786.0,0.24475184]
[1625597892363,8.5697409,33787.0,33786.0,0.0041764]
[1625597892963,8.88287083,33787.0,33784.0,0.00420473]
[1625597893203,3.48401051,33785.0,33783.0,0.08]
[1625597893384,4.20565227,33784.0,33783.0,0.08]
[1625597893746,4.20565227,33784.0,33783.0,0.08421803]
[1625597894529,2.15673976,33784.0,33783.0,0.08421803]
[1625597894710,2.15673976,33784.0,33783.0,4.53171803]
[1625597894830,0.9968998,33785.0,33783.0,4.53171803]
[1625597894951,0.9968998,33785.0,33783.0,4.85311803]
[1625597895069,0.33251018,33784.0,33783.0,4.85311803]
[1625597895250,0.33251018,33784.0,33783.0,5.33005088]
[1625597895608,0.33251018,33784.0,33783.0,5.33426815]
[1625597895970,0.49890484,33784.0,33783.0,5.33426815]
[1625597896270,0.58218853,33784.0,33783.0,5.33426815]
[1625597896510,0.58218853,33784.0,33783.0,5.42115338]
[1625597896511,0.24967835,33784.0,33783.0,5.42115338]
[1625597896752,0.58246371,33785.0,33783.0,5.94248522]
[1625597896931,0.24971526,33784.0,33783.0,5.59493066]
[1625597897172,0.24971526,33784.0,33783.0,5.41693611]
[1625597897353,0.99769723,33787.0,33783.0,5.41693611]
[1625597897473,1.23840404,33788.0,33783.0,5.33426634]
[1625597897593,0.24057544,33788.0,33783.0,5.33426634]
[1625597897714,0.24057544,33788.0,33784.0,0.00421546]
[1625597897837,1.23876559,33788.0,33784.0,0.00421546]
[1625597898134,0.24057544,33788.0,33784.0,0.00421546]
[1625597898978,9.458e-05,33789.0,33784.0,0.00421546]
[1625597899097,1.33138157,33792.0,33784.0,0.00421546]
[1625597899221,1.33238169,33796.0,33784.0,0.00421546]
[1625597899339,1.33238169,33796.0,33795.0,0.72172632]
[1625597899460,1.33303593,33797.0,33795.0,0.97124632]
[1625597899759,1.33354416,33798.0,33795.0,0.97546099]
[1625597899880,1.33386967,33799.0,33795.0,0.97546099]
[1625597900059,1.33386967,33799.0,33796.0,0.00421459]
[1625597901379,1.33386967,33799.0,33797.0,0.24057544]
[1625597901805,1.33386967,33799.0,33798.0,0.00421539]
[1625597902347,1.33386967,33799.0,33797.0,0.24057544]
[1625597902765,1.33465411,33798.0,33797.0,0.24057544]
[1625597902887,1.33465411,33798.0,33797.0,5.12607544]
[1625597903008,1.33468031,33799.0,33797.0,5.34314544]
[1625597903127,1.33468031,33799.0,33797.0,5.34736086]
[1625597903427,1.33468031,33799.0,33797.0,5.34314544]
[1625597905051,1.33639461,33802.0,33798.0,0.00418529]
[1625597905291,1.33639461,33802.0,33797.0,5.34314544]
[1625597905414,1.33639461,33802.0,33801.0,0.48115088]
[1625597905536,1.50308116,33804.0,33801.0,0.48115088]
[1625597905775,1.33632567,33802.0,33801.0,0.48115088]
[1625597907821,2.83810203,33802.0,33801.0,0.48115088]
[1625597909382,1.33632567,33802.0,33801.0,0.48115088]
[1625597910043,1.08351036,33803.0,33801.0,0.48115088]
[1625597910283,0.24057544,33805.0,33801.0,0.73600088]
[1625597919175,1.40820362,33805.0,33801.0,0.73600088]
[1625597920743,1.16707747,33804.0,33801.0,0.73600088]
[1625597921700,1.16665958,33803.0,33801.0,0.73600088]
[1625597922181,1.16631921,33802.0,33801.0,0.48115088]
[1625597922482,1.16631921,33802.0,33801.0,0.24057544]
[1625597922723,2.66253889,33802.0,33801.0,0.24057544]
[1625597923447,2.90311433,33802.0,33801.0,0.24057544]
[1625597925188,4.2327391,33802.0,33801.0,0.24057544]
[1625597926390,4.24725772,33802.0,33801.0,0.24057544]
[1625597926630,4.2327391,33802.0,33801.0,0.24057544]
[1625597927232,2.73651942,33802.0,33801.0,0.24057544]
[1625597928616,4.23375291,33802.0,33801.0,0.24057544]
[1625597928736,4.24827109,33802.0,33801.0,0.24057544]
[1625597929276,5.24637147,33802.0,33801.0,0.24057544]
[1625597933792,5.23185329,33802.0,33801.0,0.24057544]
[1625597935711,3.7346198,33802.0,33801.0,0.24057544]
[1625597938417,3.7346198,33802.0,33801.0,0.24482865]
[1625597942442,3.7346198,33802.0,33801.0,0.24057544]
[1625597942682,0.24057544,33802.0,33801.0,0.24482864]
[1625597942987,3.74074642,33802.0,33801.0,0.24482864]
[1625597949600,3.50017098,33802.0,33801.0,0.24482864]
[1625597949780,0.66257098,33802.0,33801.0,0.24482864]
[1625597950018,0.65297098,33802.0,33801.0,0.24482864]
[1625597950139,1.33691728,33808.0,33801.0,0.24482864]
[1625597950380,0.24057544,33809.0,33801.0,0.24482864]
[1625597950381,1.57782622,33809.0,33801.0,0.24482864]
[1625597950501,1.57782622,33809.0,33802.0,0.00425519]
[1625597950623,1.33715951,33808.0,33802.0,0.33015519]
[1625597950862,0.66870922,33804.0,33803.0,0.69596195]
[1625597950981,0.66870922,33804.0,33803.0,0.70021702]
[1625597951223,0.61060922,33804.0,33803.0,0.70021702]
[1625597951343,0.11010922,33804.0,33803.0,0.70021702]
[1625597951463,1.33725131,33809.0,33803.0,0.70021702]
[1625597951585,1.33725131,33809.0,33808.0,0.72172632]
[1625597951705,1.33793317,33811.0,33808.0,0.72172632]
[1625597952064,1.33793317,33811.0,33809.0,0.00425497]
[1625597952245,1.33793317,33811.0,33809.0,0.27898497]
[1625597952371,1.33793317,33811.0,33810.0,3.7905]
[1625597952486,1.3381726,33812.0,33810.0,3.7905]
[1625597952606,1.3381726,33812.0,33810.0,3.79475478]
[1625597952967,1.3381726,33812.0,33811.0,0.00425475]
[1625597953386,1.3381726,33812.0,33810.0,3.7905]
[1625597953687,1.3381726,33812.0,33811.0,0.24483012]
[1625597954106,1.33861431,33813.0,33811.0,0.24483012]
[1625597954530,1.33861431,33813.0,33811.0,0.24057544]
[1625597954893,1.33991109,33814.0,33811.0,0.24057544]
[1625597955012,1.33991109,33814.0,33812.0,0.00425451]
[1625597955130,1.33951244,33815.0,33812.0,0.00425451]
[1625597955312,0.83911244,33815.0,33812.0,0.00425451]
[1625597955551,0.83911244,33815.0,33811.0,0.24057544]
[1625597955671,0.83911244,33815.0,33814.0,0.48115088]
[1625597956333,1.50661476,33819.0,33814.0,0.48115088]
[1625597957420,1.50682622,33820.0,33814.0,0.48115088]
[1625597957655,1.50682622,33820.0,33819.0,0.48115088]
[1625597957775,1.50682622,33820.0,33819.0,0.76571088]
[1625597957896,1.50759125,33821.0,33819.0,0.76571088]
[1625597958137,1.50716568,33820.0,33819.0,0.76571088]
[1625597958919,1.50716568,33820.0,33819.0,0.52513544]
[1625597959099,1.50716568,33820.0,33819.0,0.24057544]
[1625597959100,1.80232568,33820.0,33819.0,0.24057544]
[1625597959522,3.47374534,33820.0,33819.0,0.24057544]
[1625597959642,3.95489622,33820.0,33814.0,0.48115088]
[1625597959823,1.50406051,33815.0,33814.0,0.24057544]
[1625597961264,3.17293043,33815.0,33814.0,0.24057544]
[1625597961689,3.41350587,33815.0,33814.0,0.24057544]
[1625597962050,1.74463595,33815.0,33814.0,0.24057544]
[1625597963431,0.24057544,33815.0,33814.0,0.24057544]
[1625597968544,0.24057544,33815.0,33808.0,0.24057544]
[1625597968545,1.74299765,33815.0,33808.0,0.24057544]
[1625597968843,1.50197296,33814.0,33808.0,0.24057544]
[1625597969323,1.50165811,33813.0,33808.0,0.24057544]
[1625597969802,1.50165811,33813.0,33812.0,0.24057544]
[1625597970342,2.66947755,33813.0,33812.0,0.24057544]
[1625597971364,4.0040961,33813.0,33812.0,0.24057544]
[1625597973591,2.50243799,33813.0,33812.0,0.24057544]
[1625597973711,2.50243799,33813.0,33812.0,0.24482083]
[1625597973831,1.17030845,33815.0,33812.0,0.48539627]
[1625597974131,1.33824983,33818.0,33812.0,0.48539627]
[1625597974249,1.33824983,33818.0,33813.0,0.00424438]
[1625597974373,1.33810279,33819.0,33813.0,0.00424438]
[1625597974611,1.33831154,33820.0,33813.0,0.00424438]
[1625597974791,1.33865901,33821.0,33813.0,0.00424438]
[1625597975569,1.33913974,33822.0,33813.0,0.00424438]
[1625597975809,1.33913974,33822.0,33821.0,0.72172632]
[1625597975932,1.33913974,33822.0,33821.0,1.06864632]
[1625597976171,1.33913974,33822.0,33821.0,6.11424632]
[1625597978936,1.33913974,33822.0,33821.0,5.87367088]
[1625597979841,1.57971518,33822.0,33821.0,5.87367088]
[1625597980018,2.58228321,33822.0,33821.0,5.87367088]
[1625597980743,2.58228321,33822.0,33821.0,0.82807088]
[1625597980863,2.58228321,33822.0,33821.0,0.48115088]
[1625597980864,3.08347675,33822.0,33821.0,0.48115088]
[1625597980981,3.32210675,33822.0,33821.0,0.24057544]
[1625597981103,4.82413234,33822.0,33821.0,0.24057544]
[1625597981343,9.56675185,33822.0,33821.0,0.24057544]
[1625597981523,9.56675185,33822.0,33814.0,0.24057544]
[1625597981886,3.07689449,33815.0,33814.0,0.24057544]
[1625597982548,1.7422248,33815.0,33814.0,0.24482277]
[1625597983510,3.07713773,33815.0,33814.0,0.24482277]
[1625597984291,1.7422248,33815.0,33814.0,0.24482277]
[1625597985375,0.74118083,33815.0,33814.0,0.24482277]
[1625597986878,0.24057544,33815.0,33814.0,0.24482277]
[1625597986997,0.24057544,33815.0,33814.0,0.54762277]
[1625597987720,0.50184892,33817.0,33814.0,0.54762277]
[1625597987840,0.50184892,33817.0,33816.0,0.24057544]
[1625597988144,0.50187195,33818.0,33816.0,0.24481733]
[1625597988381,0.50187195,33818.0,33817.0,0.00424186]
[1625597989463,1.50518283,33818.0,33817.0,0.00424186]
[1625597989825,1.50518283,33818.0,33817.0,5.1697173]
[1625597991144,2.84188093,33818.0,33817.0,5.16547544]
[1625597991928,3.08245637,33818.0,33817.0,5.16547544]
[1625597993910,5.75520618,33818.0,33817.0,5.16547544]
[1625597997696,4.25180529,33818.0,33817.0,5.16547544]
[1625597997936,4.25180529,33818.0,33817.0,5.16971921]
[1625598001063,4.59957529,33818.0,33817.0,0.24481921]
[1625598001363,6.09814927,33818.0,33817.0,0.24481921]
[1625598001485,6.09814927,33818.0,33814.0,0.24057544]
[1625598001664,6.09814927,33818.0,33806.0,0.52165025]
[1625598001842,0.50010753,33807.0,33806.0,0.52165025]
[1625598001962,1.21764841,33807.0,33806.0,0.52165025]
[1625598002143,1.21764841,33807.0,33805.0,0.76225698]
[1625598002144,2.2172306,33807.0,33805.0,0.76225698]
[1625598002262,2.2172306,33807.0,33806.0,3.98114459]
[1625598002562,2.2172306,33807.0,33802.0,1.04343203]
[1625598002684,3.38398968,33807.0,33803.0,0.52172232]
[1625598002928,2.66566979,33804.0,33800.0,0.52177493]
[1625598003164,2.66566979,33804.0,33798.0,1.28412529]
[1625598003165,1.49959512,33801.0,33799.0,0.52190441]
[1625598003405,1.49909481,33800.0,33798.0,0.76250998]
[1625598003527,1.73486481,33800.0,33798.0,0.76250998]
[1625598003647,0.49985145,33799.0,33798.0,0.24057544]
[1625598003886,0.49985145,33799.0,33798.0,0.76252245]
[1625598004006,0.98100233,33799.0,33797.0,0.52187525]
[1625598004188,0.98100233,33799.0,33798.0,0.00424281]
[1625598004307,0.48115088,33799.0,33798.0,0.00424281]
[1625598004486,0.98099546,33799.0,33798.0,0.00424281]
[1625598005028,1.98025873,33799.0,33798.0,0.00424281]
[1625598005986,1.98025873,33799.0,33797.0,0.00424303]
[1625598006109,1.4987009,33798.0,33797.0,0.00424303]
[1625598006228,1.4987009,33798.0,33796.0,0.52191308]
[1625598006527,1.4987009,33798.0,33797.0,0.00424314]
[1625598006646,0.99907844,33798.0,33797.0,0.00424314]
[1625598006887,1.49877504,33798.0,33797.0,0.00424314]
[1625598007306,1.49877504,33798.0,33796.0,0.00424321]
[1625598007669,0.49973369,33797.0,33796.0,0.00424321]
[1625598009291,1.49849023,33797.0,33796.0,0.00424321]
[1625598009831,1.49849023,33797.0,33795.0,0.00424337]
[1625598010012,1.49849023,33797.0,33793.0,0.5217509]
[1625598010129,0.24057544,33794.0,33793.0,0.5217509]
[1625598010490,0.24057544,33794.0,33793.0,0.52599432]
[1625598011155,0.7395406,33794.0,33793.0,0.00424342]
[1625598011273,0.7395406,33794.0,33791.0,0.521492]
[1625598011574,0.7395406,33794.0,33792.0,0.52574079]
[1625598011755,0.7395406,33794.0,33792.0,0.00424353]
[1625598011876,0.7395406,33794.0,33791.0,1.2167054]
[1625598012115,0.24057544,33792.0,33791.0,0.52137573]
[1625598012294,0.52789544,33792.0,33791.0,0.52137573]
[1625598012536,0.52789544,33792.0,33790.0,0.52139309]
[1625598012655,0.52789544,33792.0,33791.0,0.00424362]
[1625598012894,0.52789544,33792.0,33790.0,0.52139309]
[1625598013254,0.52789544,33792.0,33789.0,1.21641712]
[1625598014095,0.24057544,33790.0,33789.0,0.52122634]
[1625598014336,0.24057544,33790.0,33787.0,1.21620977]
[1625598014576,0.24057544,33790.0,33786.0,1.216241]
[1625598014577,0.74253225,33790.0,33786.0,1.216241]
[1625598014816,0.74253225,33790.0,33787.0,0.52123578]
[1625598015116,0.74253225,33790.0,33786.0,0.52103449]
[1625598015236,0.24057544,33790.0,33786.0,1.21575633]
[1625598015537,0.74288408,33790.0,33786.0,0.52103449]
[1625598015959,0.74288408,33790.0,33786.0,1.21576424]
[1625598016077,0.24057544,33787.0,33786.0,1.21576424]
[1625598016198,0.24057544,33787.0,33785.0,1.21575391]
[1625598016438,0.24057544,33787.0,33785.0,0.52103739]
[1625598016918,0.24057544,33787.0,33784.0,1.21559207]
[1625598017159,0.24057544,33787.0,33784.0,0.52086472]
[1625598017338,0.24057544,33787.0,33785.0,0.34723085]
[1625598017579,0.24057544,33787.0,33784.0,0.34723042]
[1625598017821,0.24057544,33787.0,33783.0,0.86794867]
[1625598018181,0.24057544,33784.0,33783.0,0.86794867]
[1625598018302,0.48592544,33784.0,33783.0,0.86794867]
[1625598019086,0.48592544,33784.0,33783.0,0.34710303]
[1625598019445,0.48592544,33784.0,33783.0,0.86758271]
[1625598019928,0.48592544,33784.0,33783.0,0.34710303]
[1625598022156,0.48592544,33784.0,33782.0,0.94704209]
[1625598022277,0.48592544,33784.0,33783.0,0.34669815]
[1625598023058,0.48592544,33784.0,33782.0,0.9470421]
[1625598023717,0.48592544,33784.0,33783.0,0.35092767]
[1625598023962,0.48592544,33784.0,33783.0,0.00425976]
[1625598025339,0.48592544,33784.0,33782.0,0.42660907]
[1625598025699,0.48592544,33784.0,33783.0,0.00426005]
[1625598033097,0.48592544,33784.0,33782.0,0.00426017]
[1625598033336,0.48592544,33784.0,33783.0,0.00426019]
[1625598033639,0.48592544,33784.0,33782.0,0.00426021]
[1625598039645,0.24057544,33784.0,33782.0,0.00426021]
[1625598042052,0.24057544,33784.0,33781.0,0.24057544]
[1625598042352,0.24057544,33784.0,33783.0,0.0042585]
[1625598042592,0.24057544,33784.0,33782.0,0.00425852]
[1625598042833,0.24057544,33784.0,33783.0,0.00425852]
[1625598043071,0.24057544,33784.0,33782.0,0.00425859]
[1625598047341,0.24057544,33784.0,33782.0,0.17745168]
[1625598047580,0.24057544,33784.0,33782.0,0.00425859]
[1625598047881,0.24057544,33784.0,33783.0,0.00425966]
[1625598048422,0.24057544,33784.0,33782.0,0.00425966]
[1625598048663,0.24057544,33784.0,33783.0,0.00425963]
[1625598049144,0.24057544,33784.0,33782.0,0.00425963]
[1625598049384,0.24057544,33784.0,33782.0,0.17759438]
[1625598049746,0.24057544,33784.0,33783.0,0.00425963]
[1625598051249,0.24057544,33784.0,33783.0,0.17772625]
[1625598051492,0.24057544,33784.0,33783.0,0.00425963]
[1625598052091,0.24057544,33784.0,33783.0,0.17773323]
[1625598052330,0.24057544,33784.0,33783.0,0.52467979]
[1625598052572,0.24057544,33784.0,33783.0,0.17773323]
[1625598053113,0.24057544,33784.0,33783.0,0.52477036]
[1625598054857,0.74141654,33787.0,33783.0,0.88074655]
[1625598054858,0.40755146,33787.0,33783.0,0.88074655]
[1625598055161,0.40755146,33787.0,33784.0,0.17782702]
[1625598055339,0.40755146,33787.0,33784.0,0.00425941]
[1625598055459,0.40755146,33787.0,33785.0,0.00425936]
[1625598056242,0.74156279,33787.0,33785.0,0.00425936]
[1625598056720,0.74156279,33787.0,33786.0,0.24057544]
[1625598057022,0.74156279,33787.0,33786.0,0.24483525]
[1625598057384,0.24057544,33787.0,33786.0,0.24483525]
[1625598057625,0.24057544,33787.0,33786.0,0.76586846]
[1625598057985,0.24057544,33787.0,33786.0,1.46065172]
[1625598059128,0.24057544,33787.0,33786.0,2.50420224]
[1625598060155,0.24057544,33787.0,33786.0,3.72288359]
[1625598060156,0.74342355,33787.0,33786.0,3.72288359]
[1625598060752,0.40824731,33787.0,33786.0,3.72288359]
[1625598061954,0.74353046,33787.0,33786.0,3.72288359]
[1625598062256,0.40824731,33787.0,33786.0,3.72288359]
[1625598062437,0.74376473,33787.0,33786.0,3.72288359]
[1625598063040,0.50318929,33787.0,33786.0,3.72288359]
[1625598063157,0.50318929,33787.0,33786.0,5.11642948]
[1625598063278,0.50318929,33787.0,33786.0,5.12516917]
[1625598063577,0.16767187,33787.0,33786.0,5.12516917]
[1625598063698,0.50342091,33789.0,33786.0,5.12516917]
[1625598063939,0.50342091,33789.0,33788.0,4.87794144]
[1625598064360,0.50342091,33789.0,33788.0,4.89093869]
[1625598064481,0.16786287,33789.0,33788.0,4.89093869]
[1625598064601,0.16786287,33789.0,33788.0,4.88219954]
[1625598064845,0.16786287,33789.0,33788.0,5.36335042]
[1625598065685,0.5031523,33789.0,33788.0,5.36335042]
[1625598067555,0.5031546,33790.0,33788.0,5.36335042]
[1625598067851,0.5031546,33790.0,33789.0,4.88027471]
[1625598067975,0.16777407,33790.0,33789.0,4.88027471]
[1625598068091,0.16777407,33790.0,33789.0,4.88453275]
[1625598068933,0.50330156,33790.0,33789.0,4.88453275]
[1625598074107,0.33552749,33790.0,33789.0,4.88453275]
[1625598074349,0.50329637,33790.0,33789.0,4.88453275]
[1625598074589,0.83847812,33790.0,33789.0,4.88453275]
[1625598074950,1.41388959,33790.0,33789.0,4.88453275]
[1625598075070,1.41388959,33790.0,33789.0,3.49016855]
[1625598075311,2.41892788,33790.0,33789.0,3.49016855]
[1625598077174,3.59008248,33790.0,33789.0,2.27009987]
[1625598077894,4.92822,33790.0,33789.0,1.22432672]
[1625598078135,3.59008248,33790.0,33789.0,1.22432672]
[1625598078313,4.92832066,33790.0,33789.0,1.22432672]
[1625598078614,4.92832066,33790.0,33789.0,0.5272362]
[1625598078854,4.92832066,33790.0,33789.0,0.35291015]
[1625598078974,5.1688961,33790.0,33789.0,0.35291015]
[1625598079095,5.1688961,33790.0,33789.0,0.5272358]
[1625598079337,5.1688961,33790.0,33789.0,0.87588319]
[1625598079578,5.1688961,33790.0,33789.0,0.52723398]
[1625598080176,5.1688961,33790.0,33789.0,0.26574435]
[1625598080296,5.1688961,33790.0,33789.0,0.09142052]
[1625598081678,5.1688961,33790.0,33789.0,0.00425804]
[1625598082461,5.1688961,33790.0,33789.0,0.09142002]
[1625598082702,5.1688961,33790.0,33789.0,0.00425804]
[1625598083423,5.1688961,33790.0,33789.0,0.26574243]
[1625598083727,5.1688961,33790.0,33789.0,0.0914195]
[1625598083964,5.1688961,33790.0,33789.0,0.26573731]
[1625598084508,5.1688961,33790.0,33789.0,0.00425804]
[1625598085530,6.6730219,33790.0,33789.0,0.00425804]
[1625598085711,6.6730219,33790.0,33787.0,0.2614854]
[1625598086010,4.68029352,33788.0,33787.0,0.2614854]
[1625598086130,4.89282352,33788.0,33787.0,0.2614854]
[1625598086430,4.89282352,33788.0,33787.0,0.26574402]
[1625598086550,4.89282352,33788.0,33787.0,0.61437633]
[1625598088113,4.89282352,33788.0,33787.0,0.87580848]
[1625598088652,4.89282352,33788.0,33787.0,0.52717617]
[1625598088899,4.89282352,33788.0,33787.0,0.87578078]
[1625598089133,4.89282352,33788.0,33787.0,0.52717617]
[1625598089794,4.89282352,33788.0,33787.0,0.87578685]
[1625598092141,4.89282352,33788.0,33787.0,0.26571039]
[1625598092382,4.89282352,33788.0,33787.0,0.09140921]
[1625598093104,4.89282352,33788.0,33787.0,0.00425862]
[1625598093404,4.89282352,33788.0,33786.0,0.00425899]
[1625598093583,4.67836612,33787.0,33786.0,0.00425899]
[1625598093767,4.67836612,33787.0,33786.0,0.09140752]
[1625598094728,4.67836612,33787.0,33786.0,0.00425899]
[1625598094966,4.91894156,33787.0,33786.0,0.00425899]
[1625598097431,6.42733902,33787.0,33785.0,0.00426033]
[1625598097610,4.69346961,33786.0,33785.0,0.00426033]
[1625598097731,4.69346961,33786.0,33784.0,0.08714342]
[1625598097912,4.69302605,33785.0,33784.0,0.08714342]
[1625598098273,4.69302605,33785.0,33784.0,0.09140376]
[1625598098994,4.93360149,33785.0,33784.0,0.09140376]
[1625598099117,4.93360149,33785.0,33784.0,0.00426034]
[1625598102900,4.93360149,33785.0,33783.0,0.00426043]
[1625598103021,5.17417693,33785.0,33783.0,0.00426043]
[1625598103144,0.48115088,33785.0,33784.0,0.00426041]
[1625598103383,5.17247992,33785.0,33784.0,0.00426041]
[1625598103564,5.17247992,33785.0,33783.0,0.00426037]
[1625598103864,4.6903894,33784.0,33783.0,0.00426037]
[1625598107290,9.3861894,33784.0,33783.0,0.00426037]
[1625598107709,9.3861894,33784.0,33741.0,3.48321316]
[1625598107829,9.3861894,33784.0,33772.0,1.56782854]
[1625598107951,1.17212327,33776.0,33775.0,1.04501761]
[1625598108072,1.40777327,33776.0,33775.0,1.04501761]
[1625598108195,2.34052631,33773.0,33771.0,0.52245707]
[1625598108318,6.41739689,33776.0,33769.0,1.04491415]
[1625598108432,6.41739689,33776.0,33775.0,0.00425471]
[1625598108912,6.41739689,33776.0,33766.0,0.52252452]
[1625598109032,2.17105821,33767.0,33765.0,0.52219484]
[1625598109153,3.35685997,33767.0,33765.0,0.52219484]
[1625598109273,1.16905745,33766.0,33765.0,0.52219484]
[1625598109574,2.17097825,33766.0,33764.0,1.21848508]
[1625598109816,1.16894291,33765.0,33764.0,0.5222253]
[1625598110056,1.16894291,33765.0,33763.0,1.21847787]
[1625598110234,0.50084036,33764.0,33763.0,0.71827787]
[1625598110415,0.50084036,33764.0,33762.0,1.21850199]
[1625598110594,1.16841086,33764.0,33763.0,0.00425556]
[1625598110716,1.00087975,33764.0,33763.0,0.00425556]
[1625598110894,1.50125016,33764.0,33763.0,0.00425556]
[1625598111136,1.50125016,33764.0,33762.0,0.00425556]
[1625598111255,0.50037041,33764.0,33762.0,0.00425556]
[1625598111375,0.99984329,33764.0,33763.0,0.00425572]
[1625598111674,0.49986268,33764.0,33763.0,0.00425572]
[1625598111853,0.49986268,33764.0,33761.0,0.00425557]
[1625598112575,0.49964079,33766.0,33762.0,0.52138577]
[1625598112997,0.49964079,33766.0,33763.0,0.00425528]
[1625598113117,1.68534788,33767.0,33763.0,0.00425528]
[1625598113356,1.46184788,33767.0,33763.0,0.00425528]
[1625598113778,1.46184788,33767.0,33763.0,0.52538851]
[1625598113779,0.96230176,33767.0,33763.0,0.52538851]
[1625598114258,0.96230176,33767.0,33764.0,0.00425524]
[1625598114797,0.96230176,33767.0,33763.0,0.00425518]
[1625598115100,1.27497176,33767.0,33766.0,0.24057544]
[1625598115339,1.27497176,33767.0,33763.0,0.00425518]
[1625598116180,1.27497176,33767.0,33762.0,0.00425403]
[1625598116421,1.27497176,33767.0,33764.0,0.00425411]
[1625598116660,1.27497176,33767.0,33763.0,0.00425411]
[1625598116783,0.96230176,33767.0,33763.0,0.00425411]
[1625598116963,0.96230176,33767.0,33762.0,0.00425224]
[1625598117145,0.24057544,33763.0,33762.0,0.24482768]
[1625598117502,0.53357544,33763.0,33762.0,0.00425224]
[1625598117743,0.53357544,33763.0,33759.0,0.52058906]
[1625598117862,0.53357544,33763.0,33758.0,0.52057677]
[1625598118104,0.53357544,33763.0,33760.0,0.00425032]
[1625598118345,0.53357544,33763.0,33759.0,0.00425037]
[1625598118645,0.53357544,33763.0,33757.0,0.52043094]
[1625598118886,0.53357544,33763.0,33760.0,0.00425046]
[1625598119126,0.48115088,33761.0,33758.0,0.00425044]
[1625598119427,0.48115088,33761.0,33756.0,0.52040859]
[1625598119548,0.48115088,33761.0,33758.0,0.52039158]
[1625598119669,0.48115088,33761.0,33759.0,0.00425039]
[1625598120510,0.48115088,33761.0,33759.0,0.52445658]
[1625598120810,0.48115088,33761.0,33760.0,0.52019963]
[1625598120990,0.48115088,33761.0,33760.0,0.52444974]
[1625598121169,0.48115088,33761.0,33760.0,0.76502518]
[1625598121289,0.48115088,33761.0,33760.0,1.04432518]
[1625598121470,0.48115088,33761.0,33760.0,2.08467673]
[1625598121595,0.24057544,33761.0,33760.0,2.08467673]
[1625598122972,0.24057544,33761.0,33760.0,1.5644771]
[1625598123152,0.24057544,33761.0,33760.0,2.04156952]
[1625598123452,0.24057544,33761.0,33760.0,2.04583237]
[1625598123633,0.24057544,33761.0,33760.0,1.80525693]
[1625598124415,0.24057544,33761.0,33760.0,1.80950641]
[1625598124535,0.24057544,33761.0,33760.0,0.76915486]
[1625598124657,0.24057544,33761.0,33760.0,0.77340435]
[1625598125015,0.24057544,33761.0,33760.0,0.77765383]
[1625598125256,0.24057544,33761.0,33760.0,0.77340435]
[1625598125497,0.24057544,33761.0,33760.0,0.77765382]
[1625598126517,0.56973544,33761.0,33760.0,0.77765382]
[1625598130120,0.56973544,33761.0,33760.0,1.81788208]
[1625598130841,0.24057544,33761.0,33760.0,1.81788208]
[1625598131084,0.24057544,33767.0,33760.0,1.81788208]
[1625598131202,0.24057544,33767.0,33766.0,0.24057544]
[1625598131683,0.24057544,33767.0,33766.0,0.24482558]
[1625598132584,0.24057544,33767.0,33766.0,0.76503905]
[1625598134388,0.24057544,33767.0,33766.0,0.52446361]
[1625598134689,0.24057544,33767.0,33766.0,0.00425014]
[1625598135055,0.24057544,33767.0,33764.0,0.00425041]
[1625598135169,0.49706544,33767.0,33764.0,0.00425041]
[1625598135290,0.48115088,33765.0,33761.0,0.52060679]
[1625598135410,0.48115088,33765.0,33760.0,0.5334056]
[1625598135771,0.48115088,33765.0,33761.0,0.00425096]
[1625598136192,0.97994438,33765.0,33761.0,0.00425096]
[1625598136611,1.06744438,33765.0,33761.0,0.00425096]
[1625598137331,0.24057544,33762.0,33761.0,0.00425096]
[1625598138536,0.7387119,33762.0,33761.0,0.00425096]
[1625598138658,0.7387119,33762.0,33760.0,1.278e-05]
[1625598138779,0.49809318,33761.0,33760.0,1.278e-05]
[1625598139259,0.73866862,33761.0,33760.0,1.278e-05]
[1625598139921,0.82866862,33761.0,33760.0,1.278e-05]
[1625598141249,0.73866862,33761.0,33760.0,1.278e-05]
[1625598142269,0.82846862,33761.0,33760.0,1.278e-05]
[1625598143773,0.73866862,33761.0,33760.0,1.278e-05]